Workbook

Sheet 1. Info
AB1: Algoma Power Inc.
AB2: Atikokan Hydro Inc.
AB3: Attawapiskat Power Corporation
AB4: Bluewater Power Distribution Corporation
AB5: Brant County Power Inc.
AB6: Brantford Power Inc.
AB7: Burlington Hydro Inc.
AB8: Cambridge and North Dumfries Hydro Inc.
AB9: Canadian Niagara Power Inc.
AB10: Centre Wellington Hydro Ltd.
AB11: Chapleau Public Utilities Corporation
AB12: COLLUS PowerStream Corp.
A13: Drop-down lists are shaded blue; Input cells are shaded green. | AB13: Cooperative Hydro Embrun Inc.
AB14: E.L.K. Energy Inc.
C15: Utility Name | D15: Renfrew Hydro Inc. | AB15: Enersource Hydro Mississauga Inc.
AB16: Entegrus Powerlines Inc.
C17: Service Territory | D17: Town of Renfrew | AB17: EnWin Utilities Ltd.
AB18: Erie Thames Powerlines Corporation
C19: Assigned EB Number | D19: EB-2016-0166 | AB19: Espanola Regional Hydro Distribution Corporation
AB20: Essex Powerlines Corporation
C21: Name and Title | D21: Bill Nippard- President | AB21: Festival Hydro Inc.
AB22: Fort Albany Power Corporation
C23: Phone Number | D23: 613-432-4884 | AB23: Fort Frances Power Corporation
AB24: Greater Sudbury Hydro Inc.
C25: Email Address | D25: bnippard@renfrewhydro.com | AB25: Grimsby Power Inc.
AB26: Guelph Hydro Electric Systems Inc.
C27: Date | D27: June14 2016 | AB27: Haldimand County Hydro Inc.
AB28: Halton Hills Hydro Inc.
C29: Last COS Re-based Year | D29: 2010 | AB29: Hearst Power Distribution Company Limited
AB30: Horizon Utilities Corporation
AB31: Hydro 2000 Inc.
AB32: Hydro Hawkesbury Inc.
AB33: Hydro One Brampton Networks Inc.
AB34: Hydro One Networks Inc.
AB35: Hydro One Remote Communities Inc.
AB36: Hydro Ottawa Limited
AB37: Innpower Corporation
AB38: Kashechewan Power Corporation
AB39: Kenora Hydro Electric Corporation Ltd.
AB40: Kingston Hydro Corporation
AB41: Kitchener-Wilmot Hydro Inc.
AB42: Lakefront Utilities Inc.
AB43: Lakeland Power Distribution Ltd.
AB44: London Hydro Inc.
AB45: Midland Power Utility Corporation
AB46: Milton Hydro Distribution Inc.
AB47: Newmarket-Tay Power Distribution Ltd.
AB48: Niagara Peninsula Energy Inc.
AB49: Niagara-on-the-Lake Hydro Inc.
AB50: Norfolk Power Distribution Inc.
AB51: North Bay Hydro Distribution Limited
AB52: Northern Ontario Wires Inc.
AB53: Oakville Hydro Electricity Distribution Inc.
AB54: Orangeville Hydro Limited
AB55: Orillia Power Distribution Corporation
AB56: Oshawa PUC Networks Inc.
AB57: Ottawa River Power Corporation
AB58: Peterborough Distribution Incorporated
AB59: PowerStream Inc.
AB60: PUC Distribution Inc.
AB61: Renfrew Hydro Inc.
AB62: Rideau St. Lawrence Distribution Inc.
AB63: Sioux Lookout Hydro Inc.
AB64: St. Thomas Energy Inc.
AB65: Thunder Bay Hydro Electricity Distribution Inc.
AB66: Tillsonburg Hydro Inc.
AB67: Toronto Hydro-Electric System Limited
AB68: Veridian Connections Inc.
AB69: Wasaga Distribution Inc.
AB70: Waterloo North Hydro Inc.
AB71: Welland Hydro-Electric System Corp.
AB72: Wellington North Power Inc.
AB73: West Coast Huron Energy Inc.
AB74: Westario Power Inc.
AB75: Whitby Hydro Electric Corporation
AB76: Woodstock Hydro Services Inc.

Sheet 2. Table of Contents
D20: 1. Info | I20: 6. Historical Wholesale
D22: 2. Table of Contents | I22: 7. Current Wholesale
D24: 3. Rate Classes | I24: 8. Forecast Wholesale
D26: 4. RRR Data | I26: 9. RTSR Rates to Forecast
D28: 5. UTRs and Sub-Transmission

Sheet 3. Rate Classes
C13: 1. Select the appropriate rate classes that appear on your most recent Board-Approved Tariff of Rates and Charges. 2. Enter the RTS Network and Connection Rate as it appears on the Tariff of Rates and Charges
C15: Rate Class | E15: Unit | G15: RTSR-Network | I15: RTSR-Connection
C17: Residential | E17: kWh | G17: 0.0064 | I17: 0.0033 | L17: =IF(OR(ISBLANK(C17), ISERROR(FIND("Choose", C17))=FALSE), 0, 1) -> 1 | M17: ="C" & ROW(C17) -> C17 | N17: =IF(OR(C17="General Service Intermediate Rate Class 1,000 To 4,999 kW (formerly General Service > 50 kW Customers)", C17="General Service Intermediate Rate Class 1,000 To 4,999 kW (formerly Large Use Customers)"), "x", "") ->  | W17: Choose Rate Class
C18: General Service Less Than 50 kW | E18: kWh | G18: 0.0058 | I18: 0.0031 | L18: 1 | M18: C18 | N18: =IF(OR(C18="General Service Intermediate Rate Class 1,000 To 4,999 kW (formerly General Service > 50 kW Customers)", C18="General Service Intermediate Rate Class 1,000 To 4,999 kW (formerly Large Use Customers)"), "x", "") ->  | W18: Residential
C19: General Service 50 to 4,999 kW | E19: kW | G19: 2.3668 | I19: 1.1566 | L19: 1 | M19: C19 | W19: Residential Regular
C20: Unmetered Scattered Load | E20: kWh | G20: 0.0058 | I20: 0.0031 | L20: 1 | M20: C20 | W20: Residential Urban
C21: Street Lighting | E21: kW | G21: 1.7849 | I21: 0.8941 | L21: 1 | M21: C21 | W21: Residential Urban Year-Round
C22: Choose Rate Class | L22: 0 | M22: C22 | W22: Residential Suburban
C23: Choose Rate Class | L23: 0 | M23: C23 | W23: Residential Suburban Seasonal
C24: Choose Rate Class | L24: 0 | M24: C24 | W24: Residential Suburban Year Round
C25: Choose Rate Class | L25: 0 | M25: C25 | W25: Residential - Time of Use
C26: Choose Rate Class | L26: 0 | M26: C26 | W26: Residential - Hensall
C27: Choose Rate Class | L27: 0 | M27: C27 | W27: Residential – High Density [R1]
C28: Choose Rate Class | L28: 0 | M28: C28 | W28: Residential – Normal Density [R2]
C29: Choose Rate Class | L29: 0 | M29: C29 | W29: Seasonal Residential – High Density [R3]
C30: Choose Rate Class | L30: 0 | M30: C30 | W30: Seasonal Residential – Normal Density [R4]
C31: Choose Rate Class | L31: 0 | M31: C31 | W31: Residential – Urban [UR]
C32: Choose Rate Class | L32: 0 | M32: C32 | W32: General Service Less Than 50 kW
C33: Choose Rate Class | L33: 0 | M33: C33 | W33: General Service Less Than 50 kW – Single Phase energy-billed [G1]
C34: Choose Rate Class | L34: 0 | M34: C34 | W34: General Service Less Than 50 kW – Three Phase energy-billed [G3]
C35: Choose Rate Class | L35: 0 | M35: C35 | W35: General Service Less Than 50 kW – Transmission Class energy-billed [T]
C36: Choose Rate Class | L36: 0 | M36: C36 | W36: General Service Less Than 50 kW – Urban energy-billed [UG]
C37: Choose Rate Class | L37: 0 | M37: C37 | W37: Westport Sewage Treatment Plant
C38: Choose Rate Class | L38: 0 | M38: C38 | W38: Small Commercial and USL - per meter
N39: =COUNTIF(N17:N38, "x") -> 0 | W39: Small Commercial and USL - per connection
W40: Farms – Single Phase energy-billed [F1]
W41: General Service 50 to 499 kW
W42: General Service 50 to 699 kW
W43: General Service 50 to 999 kW
W44: General Service 50 to 999 kW - Interval Metered
W45: General Service 50 to 1,000 kW
W46: General Service 50 to 1,000 kW - Interval Meters
W47: General Service 50 to 1,000 kW - Non Interval Meters
W48: General Service 50 to 1,499 kW
W49: General Service 50 to 1,499 kW - Interval Metered
W50: General Service 50 to 2,499 kW
W51: General Service 50 to 2,999 kW
W52: General Service 50 to 2,999 kW - Time of Use
W53: General Service 50 to 4,999 kW
W54: General Service 50 to 4,999 kW – Interval Metered
W55: General Service 50 to 4,999 kW - Time of Use
W56: General Service 50 to 4,999 kW (CoGeneration)
W57: General Service 50 to 4,999 kW (formerly Time of Use)
W58: General Service 500 to 4,999 kW
W59: General Service 700 to 4,999 kW
W60: General Service 1,000 to 2,999 kW
W61: General Service 1,000 to 4,999 kW
W62: General Service 1,000 to 4,999 kW - Interval Meters
W63: General Service 1,000 To 4,999 kW (co-generation)
W64: General Service Greater Than 1,000 kW
W65: General Service Intermediate Rate Class 1,000 To 4,999 kW (formerly Large Use Customers)
W66: General Service Intermediate Rate Class 1,000 To 4,999 kW (formerly General Service > 50 kW Customers)
W67: General Service 1,500 to 4,999 kW
W68: General Service Equal To Or Greater Than 1,500 kW
W69: General Service Equal To Or Greater Than 1,500 kW - Interval Metered
W70: General Service Intermediate 1,000 To 4,999 kW
W71: General Service 2,500 to 4,999 kW
W72: General Service 3,000 to 4,999 kW
W73: General Service 3,000 to 4,999 kW - Interval Metered
W74: General Service 3,000 to 4,999 kW - Intermediate Use
W75: General Service 3,000 to 4,999 kW - Time of Use
W76: Intermediate With Self Generation
W77: General Service - Commercial
W78: General Service - Institutional
W79: Farms – Three Phase energy-billed [F3]
W80: Large Use
W81: Large Use - Regular
W82: Large Use > 5000 kW
W83: Large Use - 3TS
W84: Large Use - Ford Annex
W85: Unmetered Scattered Load
W86: Sentinel Lighting
W87: Street Lighting
W88: Embedded Distributor
W89: Low Voltage Wheeling Charge Rate
W90: Stand-By
W91: Standby Power
W92: Standby Power – INTERIM APPROVAL
W93: Standby Power - APPROVED ON AN INTERIM BASIS
W94: Standby - General Service 50 - 1,000 kW
W95: Standby Power General Service 50 to 1,499 kW
W96: Standby - General Service 1,000 - 5,000 kW
W97: Standby Power General Service 1,500 to 4,999 kW
W98: Standby - Large Use
W99: Standby Power General Service Large Use
W100: Standby Distribution Service

Sheet 4. RRR Data
B15: Rate Class | C15: Rate Description | D15: Unit | E15: Rate | F15: Non-Loss Adjusted Metered kWh | G15: Non-Loss Adjusted Metered kW | H15: Applicable Loss Factor eg: (1.0325) | I15: Loss Adjusted Billed kWh
B17: Residential | C17: RTSR - Network | D17: kWh | E17: 0.0064 | F17: 29589161 | H17: 1.081 | I17: =F17*H17 -> 31985883.04
B18: Residential | C18: RTSR - Connection | D18: kWh | E18: 0.0033 | F18: 29589161 | H18: 1.081 | I18: =F18*H18 -> 31985883.04
B19: General Service Less Than 50 kW | C19: RTSR - Network | D19: kWh | E19: 0.0058 | F19: 10843312 | H19: 1.081 | I19: =F19*H19 -> 11721620.27
B20: General Service Less Than 50 kW | C20: RTSR - Connection | D20: kWh | E20: 0.0031 | F20: 10843312 | H20: 1.081 | I20: =F20*H20 -> 11721620.27
B21: General Service 50 to 4,999 kW | C21: RTSR - Network | D21: kW | E21: 2.3668 | F21: 45095566 | G21: 113922
B22: General Service 50 to 4,999 kW | C22: RTSR - Connection | D22: kW | E22: 1.1566 | F22: 45095566 | G22: 113922
B23: Unmetered Scattered Load | C23: RTSR - Network | D23: kWh | E23: 0.0058 | F23: 155364 | H23: 1.081 | I23: =F23*H23 -> 167948.484
B24: Unmetered Scattered Load | C24: RTSR - Connection | D24: kWh | E24: 0.0031 | F24: 155364 | H24: 1.081 | I24: =F24*H24 -> 167948.484
B25: Street Lighting | C25: RTSR - Network | D25: kW | E25: 1.7849 | F25: 1123681 | G25: 3165
B26: Street Lighting | C26: RTSR - Connection | D26: kW | E26: 0.8941 | F26: 1123681 | G26: 3165

Sheet 5. UTRs and Sub-Transmission
B18: Uniform Transmission Rates | C18: Unit | E18: Effective January 1, 2014 | G18: Effective May 1, 2015 | I18: Effective January 1, 2017
B20: Rate Description | E20: Rate | G20: Rate | I20: Rate
B22: Network Service Rate | C22: kW | E22: 3.63 | G22: 3.41 | I22: 3.78
B24: Line Connection Service Rate | C24: kW | E24: 0.75 | G24: 0.75 | I24: 0.86
B26: Transformation Connection Service Rate | C26: kW | E26: 1.85 | G26: 1.8 | I26: 2
B29: Hydro One Sub-Transmission Rates | C29: Unit | E29: Effective January 1, 2014 | G29: Effective May 1, 2015 | I29: Effective January 1, 2016
B33: Rate Description | E33: Rate | G33: Rate | I33: Rate
B35: Network Service Rate | C35: kW | E35: 3.18 | G35: 3.23 | I35: 3.34
B37: Line Connection Service Rate | C37: kW | E37: 0.7 | G37: 0.65 | I37: 0.78
B39: Transformation Connection Service Rate | C39: kW | E39: 1.63 | G39: 1.62 | I39: 1.77
B41: Both Line and Transformation Connection Service Rate | C41: kW | E41: =SUM(E37,E39) -> 2.33 | G41: =SUM(G37,G39) -> 2.27 | I41: =I39+I37 -> 2.55
B44: If needed, add extra host here. (I) | C44: Unit | E44: Effective January 1, 2014 | G44: Effective January 1, 2015 | I44: Effective January 1, 2016
B48: Rate Description | E48: Rate | G48: Rate | I48: Rate
B50: Network Service Rate | C50: kW
B52: Line Connection Service Rate | C52: kW
B54: Transformation Connection Service Rate | C54: kW
B56: Both Line and Transformation Connection Service Rate | C56: kW | E56: =SUM(E52,E54) -> 0 | G56: =SUM(G52,G54) -> 0 | I56: =I54+I52 -> 0
B59: If needed, add extra host here. (II) | C59: Unit | E59: Effective January 1, 2014 | G59: Effective January 1, 2015 | I59: Effective January 1, 2016
B63: Rate Description | E63: Rate | G63: Rate | I63: Rate
B65: Network Service Rate | C65: kW
B67: Line Connection Service Rate | C67: kW
B69: Transformation Connection Service Rate | C69: kW
B71: Both Line and Transformation Connection Service Rate | C71: kW | E71: =SUM(E67,E69) -> 0 | G71: =SUM(G67,G69) -> 0 | I71: =I69+I67 -> 0
B75: Hydro One Sub-Transmission Rate Rider 9A | C75: Unit | E75: Effective January 1, 2014 | G75: Effective January 1, 2015 | I75: Effective January 1, 2016
B77: Rate Description | E77: Rate | G77: Rate | I77: Rate
B79: RSVA Transmission network – 4714 – which affects 1584 | C79: kW | E79: 0.1465 | G79: 0 | I79: 0
B81: RSVA Transmission connection – 4716 – which affects 1586 | C81: kW | E81: 0.0667 | G81: 0 | I81: 0
B83: RSVA LV – 4750 – which affects 1550 | C83: kW | E83: 0.0475 | G83: 0 | I83: 0
B85: RARA 1 – 2252 – which affects 1590 | C85: kW | E85: 0.0419 | G85: 0 | I85: 0
B87: RARA 1 – 2252 – which affects 1590 (2008) | C87: kW | E87: -0.027 | G87: 0 | I87: 0
B89: RARA 1 – 2252 – which affects 1590 (2009) | C89: kW | E89: -0.0006 | G89: 0 | I89: 0
B91: Hydro One Sub-Transmission Rate Rider 9A | C91: kW | E91: 0.275 | G91: 0 | I91: =SUM(I79:I89) -> 0
E94: Historical 2014 | G94: Current 2015 | I94: Forecast 2016
B95: Low Voltage Switchgear Credit (if applicable, enter as a negative value) | C95: $

Sheet 6. Historical Wholesale
B21: IESO | D21: Network | H21: Line Connection | L21: Transformation Connection | P21: Total Line
B22: Month | D22: Units Billed | E22: Rate | F22: Amount | H22: Units Billed | I22: Rate | J22: Amount | L22: Units Billed | M22: Rate | N22: Amount | P22: Amount
B24: January | E24: =IF(D24<>0,F24/D24,0) -> 0 | I24: =IF(H24<>0,J24/H24,0) -> 0 | M24: =IF(L24<>0,N24/L24,0) -> 0 | P24: =J24+N24 -> 0
B25: February | E25: =IF(D25<>0,F25/D25,0) -> 0 | I25: =IF(H25<>0,J25/H25,0) -> 0 | M25: =IF(L25<>0,N25/L25,0) -> 0 | P25: 0
B26: March | E26: 0 | I26: 0 | M26: 0 | P26: 0
B27: April | E27: 0 | I27: 0 | M27: 0 | P27: 0
B28: May | E28: 0 | I28: 0 | M28: 0 | P28: 0
B29: June | E29: 0 | I29: 0 | M29: 0 | P29: 0
B30: July | E30: 0 | I30: 0 | M30: 0 | P30: 0
B31: August | E31: 0 | I31: 0 | M31: 0 | P31: 0
B32: September | E32: 0 | I32: 0 | M32: 0 | P32: 0
B33: October | E33: 0 | I33: 0 | M33: 0 | P33: 0
B34: November | E34: 0 | I34: 0 | M34: 0 | P34: 0
B35: December | E35: 0 | I35: 0 | M35: 0 | P35: 0
B37: Total | D37: =SUM(D24:D35) -> 0 | E37: =IF(D37<>0,F37/D37,0) -> 0 | F37: =SUM(F24:F35) -> 0 | H37: =SUM(H24:H35) -> 0 | I37: =IF(H37<>0,J37/H37,0) -> 0 | J37: =SUM(J24:J35) -> 0 | L37: =SUM(L24:L35) -> 0 | M37: =IF(L37<>0,N37/L37,0) -> 0 | N37: =SUM(N24:N35) -> 0 | P37: =SUM(P24:P35) -> 0
B39: Hydro One | D39: Network | H39: Line Connection | L39: Transformation Connection | P39: Total Line
B41: Month | D41: Units Billed | E41: Rate | F41: Amount | H41: Units Billed | I41: Rate | J41: Amount | L41: Units Billed | M41: Rate | N41: Amount | P41: Amount
B43: January | D43: 15803 | E43: =IF(D43<>0,F43/D43,0) -> 3.229965196 | F43: 51043.14 | I43: =IF(H43<>0,J43/H43,0) -> 0 | L43: 15803 | M43: =IF(L43<>0,N43/L43,0) -> 1.619982282 | N43: 25600.58 | P43: =J43+N43 -> 25600.58
B44: February | D44: 15138 | E44: =IF(D44<>0,F44/D44,0) -> 3.229948474 | F44: 48894.96 | I44: =IF(H44<>0,J44/H44,0) -> 0 | L44: 15138 | M44: =IF(L44<>0,N44/L44,0) -> 1.619974237 | N44: 24523.17 | P44: 24523.17
B45: March | D45: 14473 | E45: 3.229930906 | F45: 46746.79 | I45: 0 | L45: 14473 | M45: 1.619965453 | N45: 23445.76 | P45: 23445.76
B46: April | D46: 9693 | E46: 3.262560611 | F46: 31624 | I46: 0 | L46: 9693 | M46: 1.65248633 | N46: 16017.55 | P46: 16017.55
B47: May | D47: 10805 | E47: 3.154035169 | F47: 34079.35 | I47: 0 | L47: 10805 | M47: 2.020731143 | N47: 21834 | P47: 21834
B48: June | D48: 14453 | E48: 3.412061856 | F48: 49314.53 | I48: 0 | L48: 14453 | M48: 1.896616619 | N48: 27411.8 | P48: 27411.8
B49: July | D49: 15675 | E49: 3.412201595 | F49: 53486.26 | I49: 0 | L49: 15675 | M49: 1.893141946 | N49: 29675 | P49: 29675
B50: August | D50: 16466 | E50: 3.412000486 | F50: 56182 | I50: 0 | L50: 16466 | M50: 1.801749059 | N50: 29667.6 | P50: 29667.6
B51: September | D51: 14855 | E51: 3.412049815 | F51: 50686 | I51: 0 | L51: 14855 | M51: 1.836687984 | N51: 27284 | P51: 27284
B52: October | D52: 12155 | E52: 3.412011518 | F52: 41473 | I52: 0 | L52: 12155 | M52: 1.846236117 | N52: 22441 | P52: 22441
B53: November | D53: 12438 | E53: 3.412039717 | F53: 42438.95 | I53: 0 | L53: 12438 | M53: 1.972584017 | N53: 24535 | P53: 24535
B54: December | D54: 12537 | E54: 3.412112148 | F54: 42777.65 | I54: 0 | L54: 12537 | M54: 1.944245035 | N54: 24375 | P54: 24375
B56: Total | D56: =SUM(D43:D54) -> 164491 | E56: =IF(D56<>0,F56/D56,0) -> 3.336028293 | F56: =SUM(F43:F54) -> 548746.63 | H56: =SUM(H43:H54) -> 0 | I56: =IF(H56<>0,J56/H56,0) -> 0 | J56: =SUM(J43:J54) -> 0 | L56: =SUM(L43:L54) -> 164491 | M56: =IF(L56<>0,N56/L56,0) -> 1.804417628 | N56: =SUM(N43:N54) -> 296810.46 | P56: =SUM(P43:P54) -> 296810.46
B58: Add Extra Host Here (I) | D58: Network | H58: Line Connection | L58: Transformation Connection | P58: Total Line
B59: (if needed)
B60: Month | D60: Units Billed | E60: Rate | F60: Amount | H60: Units Billed | I60: Rate | J60: Amount | L60: Units Billed | M60: Rate | N60: Amount | P60: Amount
B62: January | E62: =IF(D62<>0,F62/D62,0) -> 0 | I62: =IF(H62<>0,J62/H62,0) -> 0 | M62: =IF(L62<>0,N62/L62,0) -> 0 | P62: =J62+N62 -> 0
B63: February | E63: 0 | I63: 0 | M63: 0 | P63: 0
B64: March | E64: 0 | I64: 0 | M64: 0 | P64: 0
B65: April | E65: 0 | I65: 0 | M65: 0 | P65: 0
B66: May | E66: 0 | I66: 0 | M66: 0 | P66: 0
B67: June | E67: 0 | I67: 0 | M67: 0 | P67: 0
B68: July | E68: 0 | I68: 0 | M68: 0 | P68: 0
B69: August | E69: 0 | I69: 0 | M69: 0 | P69: 0
B70: September | E70: 0 | I70: 0 | M70: 0 | P70: 0
B71: October | E71: 0 | I71: 0 | M71: 0 | P71: 0
B72: November | E72: 0 | I72: 0 | M72: 0 | P72: 0
B73: December | E73: 0 | I73: 0 | M73: 0 | P73: 0
B75: Total | D75: =SUM(D62:D73) -> 0 | E75: =IF(D75<>0,F75/D75,0) -> 0 | F75: =SUM(F62:F73) -> 0 | H75: =SUM(H62:H73) -> 0 | I75: =IF(H75<>0,J75/H75,0) -> 0 | J75: =SUM(J62:J73) -> 0 | L75: =SUM(L62:L73) -> 0 | M75: =IF(L75<>0,N75/L75,0) -> 0 | N75: =SUM(N62:N73) -> 0 | P75: =SUM(P62:P73) -> 0
B77: Add Extra Host Here (II) | D77: Network | H77: Line Connection | L77: Transformation Connection | P77: Total Line
B78: (if needed)
B79: Month | D79: Units Billed | E79: Rate | F79: Amount | H79: Units Billed | I79: Rate | J79: Amount | L79: Units Billed | M79: Rate | N79: Amount | P79: Amount
B81: January | E81: =IF(D81<>0,F81/D81,0) -> 0 | I81: =IF(H81<>0,J81/H81,0) -> 0 | M81: =IF(L81<>0,N81/L81,0) -> 0 | P81: =J81+N81 -> 0
B82: February | E82: 0 | I82: 0 | M82: 0 | P82: 0
B83: March | E83: 0 | I83: 0 | M83: 0 | P83: 0
B84: April | E84: 0 | I84: 0 | M84: 0 | P84: 0
B85: May | E85: 0 | I85: 0 | M85: 0 | P85: 0
B86: June | E86: 0 | I86: 0 | M86: 0 | P86: 0
B87: July | E87: 0 | I87: 0 | M87: 0 | P87: 0
B88: August | E88: 0 | I88: 0 | M88: 0 | P88: 0
B89: September | E89: 0 | I89: 0 | M89: 0 | P89: 0
B90: October | E90: 0 | I90: 0 | M90: 0 | P90: 0
B91: November | E91: 0 | I91: 0 | M91: 0 | P91: 0
B92: December | E92: 0 | I92: 0 | M92: 0 | P92: 0
B94: Total | D94: =SUM(D81:D92) -> 0 | E94: =IF(D94<>0,F94/D94,0) -> 0 | F94: =SUM(F81:F92) -> 0 | H94: =SUM(H81:H92) -> 0 | I94: =IF(H94<>0,J94/H94,0) -> 0 | J94: =SUM(J81:J92) -> 0 | L94: =SUM(L81:L92) -> 0 | M94: =IF(L94<>0,N94/L94,0) -> 0 | N94: =SUM(N81:N92) -> 0 | P94: =SUM(P81:P92) -> 0
B96: Total | D96: Network | H96: Line Connection | L96: Transformation Connection | P96: Total Line
B98: Month | D98: Units Billed | E98: Rate | F98: Amount | H98: Units Billed | I98: Rate | J98: Amount | L98: Units Billed | M98: Rate | N98: Amount | P98: Amount
B100: January | D100: =D24+D43+D62+D81 -> 15803 | E100: =IF(D100<>0,F100/D100,0) -> 3.229965196 | F100: =F24+F43+F62+F81 -> 51043.14 | H100: =H24+H43+H62+H81 -> 0 | I100: =IF(H100<>0,J100/H100,0) -> 0 | J100: =J24+J43+J62+J81 -> 0 | L100: =L24+L43+L62+L81 -> 15803 | M100: =IF(L100<>0,N100/L100,0) -> 1.619982282 | N100: =N24+N43+N62+N81 -> 25600.58 | P100: =J100+N100 -> 25600.58
B101: February | D101: =D25+D44+D63+D82 -> 15138 | E101: 3.229948474 | F101: =F25+F44+F63+F82 -> 48894.96 | H101: =H25+H44+H63+H82 -> 0 | I101: 0 | J101: =J25+J44+J63+J82 -> 0 | L101: =L25+L44+L63+L82 -> 15138 | M101: 1.619974237 | N101: =N25+N44+N63+N82 -> 24523.17 | P101: 24523.17
B102: March | D102: 14473 | E102: 3.229930906 | F102: 46746.79 | H102: 0 | I102: 0 | J102: 0 | L102: 14473 | M102: 1.619965453 | N102: 23445.76 | P102: 23445.76
B103: April | D103: 9693 | E103: 3.262560611 | F103: 31624 | H103: 0 | I103: 0 | J103: 0 | L103: 9693 | M103: 1.65248633 | N103: 16017.55 | P103: 16017.55
B104: May | D104: 10805 | E104: 3.154035169 | F104: 34079.35 | H104: 0 | I104: 0 | J104: 0 | L104: 10805 | M104: 2.020731143 | N104: 21834 | P104: 21834
B105: June | D105: 14453 | E105: 3.412061856 | F105: 49314.53 | H105: 0 | I105: 0 | J105: 0 | L105: 14453 | M105: 1.896616619 | N105: 27411.8 | P105: 27411.8
B106: July | D106: 15675 | E106: 3.412201595 | F106: 53486.26 | H106: 0 | I106: 0 | J106: 0 | L106: 15675 | M106: 1.893141946 | N106: 29675 | P106: 29675
B107: August | D107: 16466 | E107: 3.412000486 | F107: 56182 | H107: 0 | I107: 0 | J107: 0 | L107: 16466 | M107: 1.801749059 | N107: 29667.6 | P107: 29667.6
B108: September | D108: 14855 | E108: 3.412049815 | F108: 50686 | H108: 0 | I108: 0 | J108: 0 | L108: 14855 | M108: 1.836687984 | N108: 27284 | P108: 27284
B109: October | D109: 12155 | E109: 3.412011518 | F109: 41473 | H109: 0 | I109: 0 | J109: 0 | L109: 12155 | M109: 1.846236117 | N109: 22441 | P109: 22441
B110: November | D110: 12438 | E110: 3.412039717 | F110: 42438.95 | H110: 0 | I110: 0 | J110: 0 | L110: 12438 | M110: 1.972584017 | N110: 24535 | P110: 24535
B111: December | D111: 12537 | E111: 3.412112148 | F111: 42777.65 | H111: 0 | I111: 0 | J111: 0 | L111: 12537 | M111: 1.944245035 | N111: 24375 | P111: 24375
B113: Total | D113: =SUM(D100:D111) -> 164491 | E113: =IF(D113<>0,F113/D113,0) -> 3.336028293 | F113: =SUM(F100:F111) -> 548746.63 | H113: =SUM(H100:H111) -> 0 | I113: =IF(H113<>0,J113/H113,0) -> 0 | J113: =SUM(J100:J111) -> 0 | L113: =SUM(L100:L111) -> 164491 | M113: =IF(L113<>0,N113/L113,0) -> 1.804417628 | N113: =SUM(N100:N111) -> 296810.46 | P113: =SUM(P100:P111) -> 296810.46
N115: Low Voltage Switchgear Credit (if applicable) | P115: ='5. UTRs and Sub-Transmission'!E95 -> 0
N117: Total including deduction for Low Voltage Switchgear Credit | P117: =P113+P115 -> 296810.46

Sheet 7. Current Wholesale
B13: The purpose of this sheet is to calculate the expected billing when current 2015 Uniform Transmission Rates are applied against historical 2014 transmission units.
B20: IESO | D20: Network | H20: Line Connection | L20: Transformation Connection | P20: Total Line
B22: Month | D22: Units Billed | E22: Rate | F22: Amount | H22: Units Billed | I22: Rate | J22: Amount | L22: Units Billed | M22: Rate | N22: Amount | P22: Amount
B24: January | D24: ='6. Historical Wholesale'!D24 -> 0 | E24: ='5. UTRs and Sub-Transmission'!G22 -> 3.41 | F24: =D24*E24 -> 0 | H24: ='6. Historical Wholesale'!H24 -> 0 | I24: ='5. UTRs and Sub-Transmission'!G24 -> 0.75 | J24: =H24*I24 -> 0 | L24: ='6. Historical Wholesale'!L24 -> 0 | M24: ='5. UTRs and Sub-Transmission'!G26 -> 1.8 | N24: =L24*M24 -> 0 | P24: =J24+N24 -> 0
B25: February | D25: ='6. Historical Wholesale'!D25 -> 0 | E25: =E24 -> 3.41 | F25: =D25*E25 -> 0 | H25: ='6. Historical Wholesale'!H25 -> 0 | I25: =I24 -> 0.75 | J25: =H25*I25 -> 0 | L25: ='6. Historical Wholesale'!L25 -> 0 | M25: =M24 -> 1.8 | N25: =L25*M25 -> 0 | P25: 0
B26: March | D26: ='6. Historical Wholesale'!D26 -> 0 | E26: =E25 -> 3.41 | F26: 0 | H26: ='6. Historical Wholesale'!H26 -> 0 | I26: =I25 -> 0.75 | J26: 0 | L26: ='6. Historical Wholesale'!L26 -> 0 | M26: =M25 -> 1.8 | N26: 0 | P26: 0
B27: April | D27: ='6. Historical Wholesale'!D27 -> 0 | E27: 3.41 | F27: 0 | H27: ='6. Historical Wholesale'!H27 -> 0 | I27: 0.75 | J27: 0 | L27: ='6. Historical Wholesale'!L27 -> 0 | M27: 1.8 | N27: 0 | P27: 0
B28: May | D28: ='6. Historical Wholesale'!D28 -> 0 | E28: 3.41 | F28: 0 | H28: ='6. Historical Wholesale'!H28 -> 0 | I28: 0.75 | J28: 0 | L28: ='6. Historical Wholesale'!L28 -> 0 | M28: 1.8 | N28: 0 | P28: 0
B29: June | D29: ='6. Historical Wholesale'!D29 -> 0 | E29: 3.41 | F29: 0 | H29: ='6. Historical Wholesale'!H29 -> 0 | I29: 0.75 | J29: 0 | L29: ='6. Historical Wholesale'!L29 -> 0 | M29: 1.8 | N29: 0 | P29: 0
B30: July | D30: ='6. Historical Wholesale'!D30 -> 0 | E30: 3.41 | F30: 0 | H30: ='6. Historical Wholesale'!H30 -> 0 | I30: 0.75 | J30: 0 | L30: ='6. Historical Wholesale'!L30 -> 0 | M30: 1.8 | N30: 0 | P30: 0
B31: August | D31: ='6. Historical Wholesale'!D31 -> 0 | E31: 3.41 | F31: 0 | H31: ='6. Historical Wholesale'!H31 -> 0 | I31: 0.75 | J31: 0 | L31: ='6. Historical Wholesale'!L31 -> 0 | M31: 1.8 | N31: 0 | P31: 0
B32: September | D32: ='6. Historical Wholesale'!D32 -> 0 | E32: 3.41 | F32: 0 | H32: ='6. Historical Wholesale'!H32 -> 0 | I32: 0.75 | J32: 0 | L32: ='6. Historical Wholesale'!L32 -> 0 | M32: 1.8 | N32: 0 | P32: 0
B33: October | D33: ='6. Historical Wholesale'!D33 -> 0 | E33: 3.41 | F33: 0 | H33: ='6. Historical Wholesale'!H33 -> 0 | I33: 0.75 | J33: 0 | L33: ='6. Historical Wholesale'!L33 -> 0 | M33: 1.8 | N33: 0 | P33: 0
B34: November | D34: ='6. Historical Wholesale'!D34 -> 0 | E34: 3.41 | F34: 0 | H34: ='6. Historical Wholesale'!H34 -> 0 | I34: 0.75 | J34: 0 | L34: ='6. Historical Wholesale'!L34 -> 0 | M34: 1.8 | N34: 0 | P34: 0
B35: December | D35: ='6. Historical Wholesale'!D35 -> 0 | E35: 3.41 | F35: 0 | H35: ='6. Historical Wholesale'!H35 -> 0 | I35: 0.75 | J35: 0 | L35: ='6. Historical Wholesale'!L35 -> 0 | M35: 1.8 | N35: 0 | P35: 0
B37: Total | D37: =SUM(D24:D35) -> 0 | E37: =IF(D37<>0,F37/D37,0) -> 0 | F37: =SUM(F24:F35) -> 0 | H37: =SUM(H24:H35) -> 0 | I37: =IF(H37<>0,J37/H37,0) -> 0 | J37: =SUM(J24:J35) -> 0 | L37: =SUM(L24:L35) -> 0 | M37: =IF(L37<>0,N37/L37,0) -> 0 | N37: =SUM(N24:N35) -> 0 | P37: =SUM(P24:P35) -> 0
B39: Hydro One | D39: Network | H39: Line Connection | L39: Transformation Connection | P39: Total Line
B41: Month | D41: Units Billed | E41: Rate | F41: Amount | H41: Units Billed | I41: Rate | J41: Amount | L41: Units Billed | M41: Rate | N41: Amount | P41: Amount
B43: January | D43: ='6. Historical Wholesale'!D43 -> 15803 | E43: ='5. UTRs and Sub-Transmission'!G35+'5. UTRs and Sub-Transmission'!G79 -> 3.23 | F43: =D43*E43 -> 51043.69 | H43: ='6. Historical Wholesale'!H43 -> 0 | I43: ='5. UTRs and Sub-Transmission'!G37+'5. UTRs and Sub-Transmission'!G81 -> 0.65 | J43: =H43*I43 -> 0 | L43: ='6. Historical Wholesale'!L43 -> 15803 | M43: ='5. UTRs and Sub-Transmission'!G39 -> 1.62 | N43: =L43*M43 -> 25600.86 | P43: =J43+N43 -> 25600.86
B44: February | D44: ='6. Historical Wholesale'!D44 -> 15138 | E44: =E43 -> 3.23 | F44: =D44*E44 -> 48895.74 | H44: ='6. Historical Wholesale'!H44 -> 0 | I44: =I43 -> 0.65 | J44: =H44*I44 -> 0 | L44: ='6. Historical Wholesale'!L44 -> 15138 | M44: =M43 -> 1.62 | N44: =L44*M44 -> 24523.56 | P44: 24523.56
B45: March | D45: ='6. Historical Wholesale'!D45 -> 14473 | E45: =E44 -> 3.23 | F45: 46747.79 | H45: ='6. Historical Wholesale'!H45 -> 0 | I45: =I44 -> 0.65 | J45: 0 | L45: ='6. Historical Wholesale'!L45 -> 14473 | M45: =M44 -> 1.62 | N45: 23446.26 | P45: 23446.26
B46: April | D46: ='6. Historical Wholesale'!D46 -> 9693 | E46: 3.23 | F46: 31308.39 | H46: ='6. Historical Wholesale'!H46 -> 0 | I46: 0.65 | J46: 0 | L46: ='6. Historical Wholesale'!L46 -> 9693 | M46: =M45 -> 1.62 | N46: 15702.66 | P46: 15702.66
B47: May | D47: ='6. Historical Wholesale'!D47 -> 10805 | E47: 3.23 | F47: 34900.15 | H47: ='6. Historical Wholesale'!H47 -> 0 | I47: 0.65 | J47: 0 | L47: ='6. Historical Wholesale'!L47 -> 10805 | M47: 1.62 | N47: 17504.1 | P47: 17504.1
B48: June | D48: ='6. Historical Wholesale'!D48 -> 14453 | E48: 3.23 | F48: 46683.19 | H48: ='6. Historical Wholesale'!H48 -> 0 | I48: 0.65 | J48: 0 | L48: ='6. Historical Wholesale'!L48 -> 14453 | M48: 1.62 | N48: 23413.86 | P48: 23413.86
B49: July | D49: ='6. Historical Wholesale'!D49 -> 15675 | E49: 3.23 | F49: 50630.25 | H49: ='6. Historical Wholesale'!H49 -> 0 | I49: 0.65 | J49: 0 | L49: ='6. Historical Wholesale'!L49 -> 15675 | M49: 1.62 | N49: 25393.5 | P49: 25393.5
B50: August | D50: ='6. Historical Wholesale'!D50 -> 16466 | E50: 3.23 | F50: 53185.18 | H50: ='6. Historical Wholesale'!H50 -> 0 | I50: 0.65 | J50: 0 | L50: ='6. Historical Wholesale'!L50 -> 16466 | M50: 1.62 | N50: 26674.92 | P50: 26674.92
B51: September | D51: ='6. Historical Wholesale'!D51 -> 14855 | E51: 3.23 | F51: 47981.65 | H51: ='6. Historical Wholesale'!H51 -> 0 | I51: 0.65 | J51: 0 | L51: ='6. Historical Wholesale'!L51 -> 14855 | M51: 1.62 | N51: 24065.1 | P51: 24065.1
B52: October | D52: ='6. Historical Wholesale'!D52 -> 12155 | E52: 3.23 | F52: 39260.65 | H52: ='6. Historical Wholesale'!H52 -> 0 | I52: 0.65 | J52: 0 | L52: ='6. Historical Wholesale'!L52 -> 12155 | M52: 1.62 | N52: 19691.1 | P52: 19691.1
B53: November | D53: ='6. Historical Wholesale'!D53 -> 12438 | E53: 3.23 | F53: 40174.74 | H53: ='6. Historical Wholesale'!H53 -> 0 | I53: 0.65 | J53: 0 | L53: ='6. Historical Wholesale'!L53 -> 12438 | M53: 1.62 | N53: 20149.56 | P53: 20149.56
B54: December | D54: ='6. Historical Wholesale'!D54 -> 12537 | E54: 3.23 | F54: 40494.51 | H54: ='6. Historical Wholesale'!H54 -> 0 | I54: 0.65 | J54: 0 | L54: ='6. Historical Wholesale'!L54 -> 12537 | M54: 1.62 | N54: 20309.94 | P54: 20309.94
B56: Total | D56: =SUM(D43:D54) -> 164491 | E56: =IF(D56<>0,F56/D56,0) -> 3.23 | F56: =SUM(F43:F54) -> 531305.93 | H56: =SUM(H43:H54) -> 0 | I56: =IF(H56<>0,J56/H56,0) -> 0 | J56: =SUM(J43:J54) -> 0 | L56: =SUM(L43:L54) -> 164491 | M56: =IF(L56<>0,N56/L56,0) -> 1.62 | N56: =SUM(N43:N54) -> 266475.42 | P56: =SUM(P43:P54) -> 266475.42
B58: ='6. Historical Wholesale'!B58 -> Add Extra Host Here (I) | D58: Network | H58: Line Connection | L58: Transformation Connection | P58: Total Line
B60: Month | D60: Units Billed | E60: Rate | F60: Amount | H60: Units Billed | I60: Rate | J60: Amount | L60: Units Billed | M60: Rate | N60: Amount | P60: Amount
B62: January | D62: ='6. Historical Wholesale'!D62 -> 0 | E62: ='5. UTRs and Sub-Transmission'!G50 -> 0 | F62: =D62*E62 -> 0 | H62: ='6. Historical Wholesale'!H62 -> 0 | I62: ='5. UTRs and Sub-Transmission'!G52 -> 0 | J62: =H62*I62 -> 0 | L62: ='6. Historical Wholesale'!L62 -> 0 | M62: ='5. UTRs and Sub-Transmission'!G54 -> 0 | N62: =L62*M62 -> 0 | P62: =J62+N62 -> 0
B63: February | D63: ='6. Historical Wholesale'!D63 -> 0 | E63: =E62 -> 0 | F63: =D63*E63 -> 0 | H63: ='6. Historical Wholesale'!H63 -> 0 | I63: =I62 -> 0 | J63: =H63*I63 -> 0 | L63: ='6. Historical Wholesale'!L63 -> 0 | M63: =M62 -> 0 | N63: =L63*M63 -> 0 | P63: 0
B64: March | D64: ='6. Historical Wholesale'!D64 -> 0 | E64: =E63 -> 0 | F64: 0 | H64: ='6. Historical Wholesale'!H64 -> 0 | I64: =I63 -> 0 | J64: 0 | L64: ='6. Historical Wholesale'!L64 -> 0 | M64: =M63 -> 0 | N64: 0 | P64: 0
B65: April | D65: ='6. Historical Wholesale'!D65 -> 0 | E65: 0 | F65: 0 | H65: ='6. Historical Wholesale'!H65 -> 0 | I65: 0 | J65: 0 | L65: ='6. Historical Wholesale'!L65 -> 0 | M65: =M64 -> 0 | N65: 0 | P65: 0
B66: May | D66: ='6. Historical Wholesale'!D66 -> 0 | E66: 0 | F66: 0 | H66: ='6. Historical Wholesale'!H66 -> 0 | I66: 0 | J66: 0 | L66: ='6. Historical Wholesale'!L66 -> 0 | M66: 0 | N66: 0 | P66: 0
B67: June | D67: ='6. Historical Wholesale'!D67 -> 0 | E67: 0 | F67: 0 | H67: ='6. Historical Wholesale'!H67 -> 0 | I67: 0 | J67: 0 | L67: ='6. Historical Wholesale'!L67 -> 0 | M67: 0 | N67: 0 | P67: 0
B68: July | D68: ='6. Historical Wholesale'!D68 -> 0 | E68: 0 | F68: 0 | H68: ='6. Historical Wholesale'!H68 -> 0 | I68: 0 | J68: 0 | L68: ='6. Historical Wholesale'!L68 -> 0 | M68: 0 | N68: 0 | P68: 0
B69: August | D69: ='6. Historical Wholesale'!D69 -> 0 | E69: 0 | F69: 0 | H69: ='6. Historical Wholesale'!H69 -> 0 | I69: 0 | J69: 0 | L69: ='6. Historical Wholesale'!L69 -> 0 | M69: 0 | N69: 0 | P69: 0
B70: September | D70: ='6. Historical Wholesale'!D70 -> 0 | E70: 0 | F70: 0 | H70: ='6. Historical Wholesale'!H70 -> 0 | I70: 0 | J70: 0 | L70: ='6. Historical Wholesale'!L70 -> 0 | M70: 0 | N70: 0 | P70: 0
B71: October | D71: ='6. Historical Wholesale'!D71 -> 0 | E71: 0 | F71: 0 | H71: ='6. Historical Wholesale'!H71 -> 0 | I71: 0 | J71: 0 | L71: ='6. Historical Wholesale'!L71 -> 0 | M71: 0 | N71: 0 | P71: 0
B72: November | D72: ='6. Historical Wholesale'!D72 -> 0 | E72: 0 | F72: 0 | H72: ='6. Historical Wholesale'!H72 -> 0 | I72: 0 | J72: 0 | L72: ='6. Historical Wholesale'!L72 -> 0 | M72: 0 | N72: 0 | P72: 0
B73: December | D73: ='6. Historical Wholesale'!D73 -> 0 | E73: 0 | F73: 0 | H73: ='6. Historical Wholesale'!H73 -> 0 | I73: 0 | J73: 0 | L73: ='6. Historical Wholesale'!L73 -> 0 | M73: 0 | N73: 0 | P73: 0
B75: Total | D75: =SUM(D62:D73) -> 0 | E75: =IF(D75<>0,F75/D75,0) -> 0 | F75: =SUM(F62:F73) -> 0 | H75: =SUM(H62:H73) -> 0 | I75: =IF(H75<>0,J75/H75,0) -> 0 | J75: =SUM(J62:J73) -> 0 | L75: =SUM(L62:L73) -> 0 | M75: =IF(L75<>0,N75/L75,0) -> 0 | N75: =SUM(N62:N73) -> 0 | P75: =SUM(P62:P73) -> 0
B77: ='6. Historical Wholesale'!B77 -> Add Extra Host Here (II) | D77: Network | H77: Line Connection | L77: Transformation Connection | P77: Total Line
B79: Month | D79: Units Billed | E79: Rate | F79: Amount | H79: Units Billed | I79: Rate | J79: Amount | L79: Units Billed | M79: Rate | N79: Amount | P79: Amount
B81: January | D81: ='6. Historical Wholesale'!D81 -> 0 | E81: ='5. UTRs and Sub-Transmission'!G65 -> 0 | F81: =D81*E81 -> 0 | H81: ='6. Historical Wholesale'!H81 -> 0 | I81: ='5. UTRs and Sub-Transmission'!G67 -> 0 | J81: =H81*I81 -> 0 | L81: ='6. Historical Wholesale'!L81 -> 0 | M81: ='5. UTRs and Sub-Transmission'!G69 -> 0 | N81: =L81*M81 -> 0 | P81: =J81+N81 -> 0
B82: February | D82: ='6. Historical Wholesale'!D82 -> 0 | E82: =E81 -> 0 | F82: =D82*E82 -> 0 | H82: ='6. Historical Wholesale'!H82 -> 0 | I82: =I81 -> 0 | J82: =H82*I82 -> 0 | L82: ='6. Historical Wholesale'!L82 -> 0 | M82: =M81 -> 0 | N82: =L82*M82 -> 0 | P82: 0
B83: March | D83: ='6. Historical Wholesale'!D83 -> 0 | E83: =E82 -> 0 | F83: 0 | H83: ='6. Historical Wholesale'!H83 -> 0 | I83: =I82 -> 0 | J83: 0 | L83: ='6. Historical Wholesale'!L83 -> 0 | M83: =M82 -> 0 | N83: 0 | P83: 0
B84: April | D84: ='6. Historical Wholesale'!D84 -> 0 | E84: 0 | F84: 0 | H84: ='6. Historical Wholesale'!H84 -> 0 | I84: 0 | J84: 0 | L84: ='6. Historical Wholesale'!L84 -> 0 | M84: =M83 -> 0 | N84: 0 | P84: 0
B85: May | D85: ='6. Historical Wholesale'!D85 -> 0 | E85: 0 | F85: 0 | H85: ='6. Historical Wholesale'!H85 -> 0 | I85: 0 | J85: 0 | L85: ='6. Historical Wholesale'!L85 -> 0 | M85: 0 | N85: 0 | P85: 0
B86: June | D86: ='6. Historical Wholesale'!D86 -> 0 | E86: 0 | F86: 0 | H86: ='6. Historical Wholesale'!H86 -> 0 | I86: 0 | J86: 0 | L86: ='6. Historical Wholesale'!L86 -> 0 | M86: 0 | N86: 0 | P86: 0
B87: July | D87: ='6. Historical Wholesale'!D87 -> 0 | E87: 0 | F87: 0 | H87: ='6. Historical Wholesale'!H87 -> 0 | I87: 0 | J87: 0 | L87: ='6. Historical Wholesale'!L87 -> 0 | M87: 0 | N87: 0 | P87: 0
B88: August | D88: ='6. Historical Wholesale'!D88 -> 0 | E88: 0 | F88: 0 | H88: ='6. Historical Wholesale'!H88 -> 0 | I88: 0 | J88: 0 | L88: ='6. Historical Wholesale'!L88 -> 0 | M88: 0 | N88: 0 | P88: 0
B89: September | D89: ='6. Historical Wholesale'!D89 -> 0 | E89: 0 | F89: 0 | H89: ='6. Historical Wholesale'!H89 -> 0 | I89: 0 | J89: 0 | L89: ='6. Historical Wholesale'!L89 -> 0 | M89: 0 | N89: 0 | P89: 0
B90: October | D90: ='6. Historical Wholesale'!D90 -> 0 | E90: 0 | F90: 0 | H90: ='6. Historical Wholesale'!H90 -> 0 | I90: 0 | J90: 0 | L90: ='6. Historical Wholesale'!L90 -> 0 | M90: 0 | N90: 0 | P90: 0
B91: November | D91: ='6. Historical Wholesale'!D91 -> 0 | E91: 0 | F91: 0 | H91: ='6. Historical Wholesale'!H91 -> 0 | I91: 0 | J91: 0 | L91: ='6. Historical Wholesale'!L91 -> 0 | M91: 0 | N91: 0 | P91: 0
B92: December | D92: ='6. Historical Wholesale'!D92 -> 0 | E92: 0 | F92: 0 | H92: ='6. Historical Wholesale'!H92 -> 0 | I92: 0 | J92: 0 | L92: ='6. Historical Wholesale'!L92 -> 0 | M92: 0 | N92: 0 | P92: 0
B94: Total | D94: =SUM(D81:D92) -> 0 | E94: =IF(D94<>0,F94/D94,0) -> 0 | F94: =SUM(F81:F92) -> 0 | H94: =SUM(H81:H92) -> 0 | I94: =IF(H94<>0,J94/H94,0) -> 0 | J94: =SUM(J81:J92) -> 0 | L94: =SUM(L81:L92) -> 0 | M94: =IF(L94<>0,N94/L94,0) -> 0 | N94: =SUM(N81:N92) -> 0 | P94: =SUM(P81:P92) -> 0
B96: Total | D96: Network | H96: Line Connection | L96: Transformation Connection | P96: Total Line
B98: Month | D98: Units Billed | E98: Rate | F98: Amount | H98: Units Billed | I98: Rate | J98: Amount | L98: Units Billed | M98: Rate | N98: Amount | P98: Amount
B100: January | D100: =D24+D43+D62+D81 -> 15803 | E100: =IF(D100<>0,F100/D100,0) -> 3.23 | F100: =F24+F43+F62+F81 -> 51043.69 | H100: =H24+H43+H62+H81 -> 0 | I100: =IF(H100<>0,J100/H100,0) -> 0 | J100: =J24+J43+J62+J81 -> 0 | L100: =L24+L43+L62+L81 -> 15803 | M100: =IF(L100<>0,N100/L100,0) -> 1.62 | N100: =N24+N43+N62+N81 -> 25600.86 | P100: =J100+N100 -> 25600.86
B101: February | D101: =D25+D44+D63+D82 -> 15138 | E101: 3.23 | F101: =F25+F44+F63+F82 -> 48895.74 | H101: =H25+H44+H63+H82 -> 0 | I101: 0 | J101: =J25+J44+J63+J82 -> 0 | L101: =L25+L44+L63+L82 -> 15138 | M101: 1.62 | N101: =N25+N44+N63+N82 -> 24523.56 | P101: 24523.56
B102: March | D102: 14473 | E102: 3.23 | F102: 46747.79 | H102: 0 | I102: 0 | J102: 0 | L102: 14473 | M102: 1.62 | N102: 23446.26 | P102: 23446.26
B103: April | D103: 9693 | E103: 3.23 | F103: 31308.39 | H103: 0 | I103: 0 | J103: 0 | L103: 9693 | M103: 1.62 | N103: 15702.66 | P103: 15702.66
B104: May | D104: 10805 | E104: 3.23 | F104: 34900.15 | H104: 0 | I104: 0 | J104: 0 | L104: 10805 | M104: 1.62 | N104: 17504.1 | P104: 17504.1
B105: June | D105: 14453 | E105: 3.23 | F105: 46683.19 | H105: 0 | I105: 0 | J105: 0 | L105: 14453 | M105: 1.62 | N105: 23413.86 | P105: 23413.86
B106: July | D106: 15675 | E106: 3.23 | F106: 50630.25 | H106: 0 | I106: 0 | J106: 0 | L106: 15675 | M106: 1.62 | N106: 25393.5 | P106: 25393.5
B107: August | D107: 16466 | E107: 3.23 | F107: 53185.18 | H107: 0 | I107: 0 | J107: 0 | L107: 16466 | M107: 1.62 | N107: 26674.92 | P107: 26674.92
B108: September | D108: 14855 | E108: 3.23 | F108: 47981.65 | H108: 0 | I108: 0 | J108: 0 | L108: 14855 | M108: 1.62 | N108: 24065.1 | P108: 24065.1
B109: October | D109: 12155 | E109: 3.23 | F109: 39260.65 | H109: 0 | I109: 0 | J109: 0 | L109: 12155 | M109: 1.62 | N109: 19691.1 | P109: 19691.1
B110: November | D110: 12438 | E110: 3.23 | F110: 40174.74 | H110: 0 | I110: 0 | J110: 0 | L110: 12438 | M110: 1.62 | N110: 20149.56 | P110: 20149.56
B111: December | D111: 12537 | E111: 3.23 | F111: 40494.51 | H111: 0 | I111: 0 | J111: 0 | L111: 12537 | M111: 1.62 | N111: 20309.94 | P111: 20309.94
B113: Total | D113: =SUM(D100:D111) -> 164491 | E113: =IF(D113<>0,F113/D113,0) -> 3.23 | F113: =SUM(F100:F111) -> 531305.93 | H113: =SUM(H100:H111) -> 0 | I113: =IF(H113<>0,J113/H113,0) -> 0 | J113: =SUM(J100:J111) -> 0 | L113: =SUM(L100:L111) -> 164491 | M113: =IF(L113<>0,N113/L113,0) -> 1.62 | N113: =SUM(N100:N111) -> 266475.42 | P113: =SUM(P100:P111) -> 266475.42
N115: Low Voltage Switchgear Credit (if applicable) | P115: ='5. UTRs and Sub-Transmission'!G95 -> 0
N117: Total including deduction for Low Voltage Switchgear Credit | P117: =P113+P115 -> 266475.42

Sheet 8. Forecast Wholesale
B13: The purpose of this sheet is to calculate the expected billing when forecasted 2016 Uniform Transmission Rates are applied against historical 2014 transmission units.
B20: IESO | D20: Network | H20: Line Connection | L20: Transformation Connection | P20: Total Line
B22: Month | D22: Units Billed | E22: Rate | F22: Amount | H22: Units Billed | I22: Rate | J22: Amount | L22: Units Billed | M22: Rate | N22: Amount | P22: Amount
B24: January | D24: ='6. Historical Wholesale'!D24 -> 0 | E24: ='5. UTRs and Sub-Transmission'!I22 -> 3.78 | F24: =D24*E24 -> 0 | H24: ='6. Historical Wholesale'!H24 -> 0 | I24: ='5. UTRs and Sub-Transmission'!I24 -> 0.86 | J24: =H24*I24 -> 0 | L24: ='6. Historical Wholesale'!L24 -> 0 | M24: ='5. UTRs and Sub-Transmission'!I26 -> 2 | N24: =L24*M24 -> 0 | P24: =J24+N24 -> 0
B25: February | D25: ='6. Historical Wholesale'!D25 -> 0 | E25: =E24 -> 3.78 | F25: 0 | H25: ='6. Historical Wholesale'!H25 -> 0 | I25: =I24 -> 0.86 | J25: 0 | L25: ='6. Historical Wholesale'!L25 -> 0 | M25: =M24 -> 2 | N25: 0 | P25: 0
B26: March | D26: ='6. Historical Wholesale'!D26 -> 0 | E26: 3.78 | F26: 0 | H26: ='6. Historical Wholesale'!H26 -> 0 | I26: 0.86 | J26: 0 | L26: ='6. Historical Wholesale'!L26 -> 0 | M26: 2 | N26: 0 | P26: 0
B27: April | D27: ='6. Historical Wholesale'!D27 -> 0 | E27: 3.78 | F27: 0 | H27: ='6. Historical Wholesale'!H27 -> 0 | I27: 0.86 | J27: 0 | L27: ='6. Historical Wholesale'!L27 -> 0 | M27: 2 | N27: 0 | P27: 0
B28: May | D28: ='6. Historical Wholesale'!D28 -> 0 | E28: 3.78 | F28: 0 | H28: ='6. Historical Wholesale'!H28 -> 0 | I28: 0.86 | J28: 0 | L28: ='6. Historical Wholesale'!L28 -> 0 | M28: 2 | N28: 0 | P28: 0
B29: June | D29: ='6. Historical Wholesale'!D29 -> 0 | E29: 3.78 | F29: 0 | H29: ='6. Historical Wholesale'!H29 -> 0 | I29: 0.86 | J29: 0 | L29: ='6. Historical Wholesale'!L29 -> 0 | M29: 2 | N29: 0 | P29: 0
B30: July | D30: ='6. Historical Wholesale'!D30 -> 0 | E30: 3.78 | F30: 0 | H30: ='6. Historical Wholesale'!H30 -> 0 | I30: 0.86 | J30: 0 | L30: ='6. Historical Wholesale'!L30 -> 0 | M30: 2 | N30: 0 | P30: 0
B31: August | D31: ='6. Historical Wholesale'!D31 -> 0 | E31: 3.78 | F31: 0 | H31: ='6. Historical Wholesale'!H31 -> 0 | I31: 0.86 | J31: 0 | L31: ='6. Historical Wholesale'!L31 -> 0 | M31: 2 | N31: 0 | P31: 0
B32: September | D32: ='6. Historical Wholesale'!D32 -> 0 | E32: 3.78 | F32: 0 | H32: ='6. Historical Wholesale'!H32 -> 0 | I32: 0.86 | J32: 0 | L32: ='6. Historical Wholesale'!L32 -> 0 | M32: 2 | N32: 0 | P32: 0
B33: October | D33: ='6. Historical Wholesale'!D33 -> 0 | E33: 3.78 | F33: 0 | H33: ='6. Historical Wholesale'!H33 -> 0 | I33: 0.86 | J33: 0 | L33: ='6. Historical Wholesale'!L33 -> 0 | M33: 2 | N33: 0 | P33: 0
B34: November | D34: ='6. Historical Wholesale'!D34 -> 0 | E34: 3.78 | F34: 0 | H34: ='6. Historical Wholesale'!H34 -> 0 | I34: 0.86 | J34: 0 | L34: ='6. Historical Wholesale'!L34 -> 0 | M34: 2 | N34: 0 | P34: 0
B35: December | D35: ='6. Historical Wholesale'!D35 -> 0 | E35: 3.78 | F35: 0 | H35: ='6. Historical Wholesale'!H35 -> 0 | I35: 0.86 | J35: 0 | L35: ='6. Historical Wholesale'!L35 -> 0 | M35: 2 | N35: 0 | P35: 0
B37: Total | D37: =SUM(D24:D35) -> 0 | E37: =IF(D37<>0,F37/D37,0) -> 0 | F37: =SUM(F24:F35) -> 0 | H37: =SUM(H24:H35) -> 0 | I37: =IF(H37<>0,J37/H37,0) -> 0 | J37: =SUM(J24:J35) -> 0 | L37: =SUM(L24:L35) -> 0 | M37: =IF(L37<>0,N37/L37,0) -> 0 | N37: =SUM(N24:N35) -> 0 | P37: =SUM(P24:P35) -> 0
B39: Hydro One | D39: Network | H39: Line Connection | L39: Transformation Connection | P39: Total Line
B41: Month | D41: Units Billed | E41: Rate | F41: Amount | H41: Units Billed | I41: Rate | J41: Amount | L41: Units Billed | M41: Rate | N41: Amount | P41: Amount
B43: January | D43: ='6. Historical Wholesale'!D43 -> 15803 | E43: ='5. UTRs and Sub-Transmission'!I35+'5. UTRs and Sub-Transmission'!I79 -> 3.34 | F43: =D43*E43 -> 52782.02 | H43: ='6. Historical Wholesale'!H43 -> 0 | I43: ='5. UTRs and Sub-Transmission'!I37+'5. UTRs and Sub-Transmission'!I81 -> 0.78 | J43: =H43*I43 -> 0 | L43: ='6. Historical Wholesale'!L43 -> 15803 | M43: ='5. UTRs and Sub-Transmission'!I39 -> 1.77 | N43: =L43*M43 -> 27971.31 | P43: =J43+N43 -> 27971.31
B44: February | D44: ='6. Historical Wholesale'!D44 -> 15138 | E44: =E43 -> 3.34 | F44: 50560.92 | H44: ='6. Historical Wholesale'!H44 -> 0 | I44: =I43 -> 0.78 | J44: 0 | L44: ='6. Historical Wholesale'!L44 -> 15138 | M44: =M43 -> 1.77 | N44: 26794.26 | P44: 26794.26
B45: March | D45: ='6. Historical Wholesale'!D45 -> 14473 | E45: 3.34 | F45: 48339.82 | H45: ='6. Historical Wholesale'!H45 -> 0 | I45: 0.78 | J45: 0 | L45: ='6. Historical Wholesale'!L45 -> 14473 | M45: 1.77 | N45: 25617.21 | P45: 25617.21
B46: April | D46: ='6. Historical Wholesale'!D46 -> 9693 | E46: 3.34 | F46: 32374.62 | H46: ='6. Historical Wholesale'!H46 -> 0 | I46: 0.78 | J46: 0 | L46: ='6. Historical Wholesale'!L46 -> 9693 | M46: 1.77 | N46: 17156.61 | P46: 17156.61
B47: May | D47: ='6. Historical Wholesale'!D47 -> 10805 | E47: 3.34 | F47: 36088.7 | H47: ='6. Historical Wholesale'!H47 -> 0 | I47: 0.78 | J47: 0 | L47: ='6. Historical Wholesale'!L47 -> 10805 | M47: 1.77 | N47: 19124.85 | P47: 19124.85
B48: June | D48: ='6. Historical Wholesale'!D48 -> 14453 | E48: 3.34 | F48: 48273.02 | H48: ='6. Historical Wholesale'!H48 -> 0 | I48: 0.78 | J48: 0 | L48: ='6. Historical Wholesale'!L48 -> 14453 | M48: 1.77 | N48: 25581.81 | P48: 25581.81
B49: July | D49: ='6. Historical Wholesale'!D49 -> 15675 | E49: 3.34 | F49: 52354.5 | H49: ='6. Historical Wholesale'!H49 -> 0 | I49: 0.78 | J49: 0 | L49: ='6. Historical Wholesale'!L49 -> 15675 | M49: 1.77 | N49: 27744.75 | P49: 27744.75
B50: August | D50: ='6. Historical Wholesale'!D50 -> 16466 | E50: 3.34 | F50: 54996.44 | H50: ='6. Historical Wholesale'!H50 -> 0 | I50: 0.78 | J50: 0 | L50: ='6. Historical Wholesale'!L50 -> 16466 | M50: 1.77 | N50: 29144.82 | P50: 29144.82
B51: September | D51: ='6. Historical Wholesale'!D51 -> 14855 | E51: 3.34 | F51: 49615.7 | H51: ='6. Historical Wholesale'!H51 -> 0 | I51: 0.78 | J51: 0 | L51: ='6. Historical Wholesale'!L51 -> 14855 | M51: 1.77 | N51: 26293.35 | P51: 26293.35
B52: October | D52: ='6. Historical Wholesale'!D52 -> 12155 | E52: 3.34 | F52: 40597.7 | H52: ='6. Historical Wholesale'!H52 -> 0 | I52: 0.78 | J52: 0 | L52: ='6. Historical Wholesale'!L52 -> 12155 | M52: 1.77 | N52: 21514.35 | P52: 21514.35
B53: November | D53: ='6. Historical Wholesale'!D53 -> 12438 | E53: 3.34 | F53: 41542.92 | H53: ='6. Historical Wholesale'!H53 -> 0 | I53: 0.78 | J53: 0 | L53: ='6. Historical Wholesale'!L53 -> 12438 | M53: 1.77 | N53: 22015.26 | P53: 22015.26
B54: December | D54: ='6. Historical Wholesale'!D54 -> 12537 | E54: 3.34 | F54: 41873.58 | H54: ='6. Historical Wholesale'!H54 -> 0 | I54: 0.78 | J54: 0 | L54: ='6. Historical Wholesale'!L54 -> 12537 | M54: 1.77 | N54: 22190.49 | P54: 22190.49
B56: Total | D56: =SUM(D43:D54) -> 164491 | E56: =IF(D56<>0,F56/D56,0) -> 3.34 | F56: =SUM(F43:F54) -> 549399.94 | H56: =SUM(H43:H54) -> 0 | I56: =IF(H56<>0,J56/H56,0) -> 0 | J56: =SUM(J43:J54) -> 0 | L56: =SUM(L43:L54) -> 164491 | M56: =IF(L56<>0,N56/L56,0) -> 1.77 | N56: =SUM(N43:N54) -> 291149.07 | P56: =SUM(P43:P54) -> 291149.07
B58: ='6. Historical Wholesale'!B58 -> Add Extra Host Here (I) | D58: Network | H58: Line Connection | L58: Transformation Connection | P58: Total Line
B60: Month | D60: Units Billed | E60: Rate | F60: Amount | H60: Units Billed | I60: Rate | J60: Amount | L60: Units Billed | M60: Rate | N60: Amount | P60: Amount
B62: January | D62: ='6. Historical Wholesale'!D62 -> 0 | E62: ='5. UTRs and Sub-Transmission'!I50 -> 0 | F62: =D62*E62 -> 0 | H62: ='6. Historical Wholesale'!H62 -> 0 | I62: ='5. UTRs and Sub-Transmission'!I52 -> 0 | J62: =H62*I62 -> 0 | L62: ='6. Historical Wholesale'!L62 -> 0 | M62: ='5. UTRs and Sub-Transmission'!I54 -> 0 | N62: =L62*M62 -> 0 | P62: =J62+N62 -> 0
B63: February | D63: ='6. Historical Wholesale'!D63 -> 0 | E63: =E62 -> 0 | F63: 0 | H63: ='6. Historical Wholesale'!H63 -> 0 | I63: =I62 -> 0 | J63: 0 | L63: ='6. Historical Wholesale'!L63 -> 0 | M63: =M62 -> 0 | N63: 0 | P63: 0
B64: March | D64: ='6. Historical Wholesale'!D64 -> 0 | E64: 0 | F64: 0 | H64: ='6. Historical Wholesale'!H64 -> 0 | I64: 0 | J64: 0 | L64: ='6. Historical Wholesale'!L64 -> 0 | M64: 0 | N64: 0 | P64: 0
B65: April | D65: ='6. Historical Wholesale'!D65 -> 0 | E65: 0 | F65: 0 | H65: ='6. Historical Wholesale'!H65 -> 0 | I65: 0 | J65: 0 | L65: ='6. Historical Wholesale'!L65 -> 0 | M65: 0 | N65: 0 | P65: 0
B66: May | D66: ='6. Historical Wholesale'!D66 -> 0 | E66: 0 | F66: 0 | H66: ='6. Historical Wholesale'!H66 -> 0 | I66: 0 | J66: 0 | L66: ='6. Historical Wholesale'!L66 -> 0 | M66: 0 | N66: 0 | P66: 0
B67: June | D67: ='6. Historical Wholesale'!D67 -> 0 | E67: 0 | F67: 0 | H67: ='6. Historical Wholesale'!H67 -> 0 | I67: 0 | J67: 0 | L67: ='6. Historical Wholesale'!L67 -> 0 | M67: 0 | N67: 0 | P67: 0
B68: July | D68: ='6. Historical Wholesale'!D68 -> 0 | E68: 0 | F68: 0 | H68: ='6. Historical Wholesale'!H68 -> 0 | I68: 0 | J68: 0 | L68: ='6. Historical Wholesale'!L68 -> 0 | M68: 0 | N68: 0 | P68: 0
B69: August | D69: ='6. Historical Wholesale'!D69 -> 0 | E69: 0 | F69: 0 | H69: ='6. Historical Wholesale'!H69 -> 0 | I69: 0 | J69: 0 | L69: ='6. Historical Wholesale'!L69 -> 0 | M69: 0 | N69: 0 | P69: 0
B70: September | D70: ='6. Historical Wholesale'!D70 -> 0 | E70: 0 | F70: 0 | H70: ='6. Historical Wholesale'!H70 -> 0 | I70: 0 | J70: 0 | L70: ='6. Historical Wholesale'!L70 -> 0 | M70: 0 | N70: 0 | P70: 0
B71: October | D71: ='6. Historical Wholesale'!D71 -> 0 | E71: 0 | F71: 0 | H71: ='6. Historical Wholesale'!H71 -> 0 | I71: 0 | J71: 0 | L71: ='6. Historical Wholesale'!L71 -> 0 | M71: 0 | N71: 0 | P71: 0
B72: November | D72: ='6. Historical Wholesale'!D72 -> 0 | E72: 0 | F72: 0 | H72: ='6. Historical Wholesale'!H72 -> 0 | I72: 0 | J72: 0 | L72: ='6. Historical Wholesale'!L72 -> 0 | M72: 0 | N72: 0 | P72: 0
B73: December | D73: ='6. Historical Wholesale'!D73 -> 0 | E73: 0 | F73: 0 | H73: ='6. Historical Wholesale'!H73 -> 0 | I73: 0 | J73: 0 | L73: ='6. Historical Wholesale'!L73 -> 0 | M73: 0 | N73: 0 | P73: 0
B75: Total | D75: =SUM(D62:D73) -> 0 | E75: =IF(D75<>0,F75/D75,0) -> 0 | F75: =SUM(F62:F73) -> 0 | H75: =SUM(H62:H73) -> 0 | I75: =IF(H75<>0,J75/H75,0) -> 0 | J75: =SUM(J62:J73) -> 0 | L75: =SUM(L62:L73) -> 0 | M75: =IF(L75<>0,N75/L75,0) -> 0 | N75: =SUM(N62:N73) -> 0 | P75: =SUM(P62:P73) -> 0
B77: ='6. Historical Wholesale'!B77 -> Add Extra Host Here (II) | D77: Network | H77: Line Connection | L77: Transformation Connection | P77: Total Line
B79: Month | D79: Units Billed | E79: Rate | F79: Amount | H79: Units Billed | I79: Rate | J79: Amount | L79: Units Billed | M79: Rate | N79: Amount | P79: Amount
B81: January | D81: ='6. Historical Wholesale'!D81 -> 0 | E81: ='5. UTRs and Sub-Transmission'!I65 -> 0 | F81: =D81*E81 -> 0 | H81: ='6. Historical Wholesale'!H81 -> 0 | I81: ='5. UTRs and Sub-Transmission'!I67 -> 0 | J81: =H81*I81 -> 0 | L81: ='6. Historical Wholesale'!L81 -> 0 | M81: ='5. UTRs and Sub-Transmission'!I69 -> 0 | N81: =L81*M81 -> 0 | P81: =J81+N81 -> 0
B82: February | D82: ='6. Historical Wholesale'!D82 -> 0 | E82: =E81 -> 0 | F82: 0 | H82: ='6. Historical Wholesale'!H82 -> 0 | I82: =I81 -> 0 | J82: 0 | L82: ='6. Historical Wholesale'!L82 -> 0 | M82: =M81 -> 0 | N82: 0 | P82: 0
B83: March | D83: ='6. Historical Wholesale'!D83 -> 0 | E83: 0 | F83: 0 | H83: ='6. Historical Wholesale'!H83 -> 0 | I83: 0 | J83: 0 | L83: ='6. Historical Wholesale'!L83 -> 0 | M83: 0 | N83: 0 | P83: 0
B84: April | D84: ='6. Historical Wholesale'!D84 -> 0 | E84: 0 | F84: 0 | H84: ='6. Historical Wholesale'!H84 -> 0 | I84: 0 | J84: 0 | L84: ='6. Historical Wholesale'!L84 -> 0 | M84: 0 | N84: 0 | P84: 0
B85: May | D85: ='6. Historical Wholesale'!D85 -> 0 | E85: 0 | F85: 0 | H85: ='6. Historical Wholesale'!H85 -> 0 | I85: 0 | J85: 0 | L85: ='6. Historical Wholesale'!L85 -> 0 | M85: 0 | N85: 0 | P85: 0
B86: June | D86: ='6. Historical Wholesale'!D86 -> 0 | E86: 0 | F86: 0 | H86: ='6. Historical Wholesale'!H86 -> 0 | I86: 0 | J86: 0 | L86: ='6. Historical Wholesale'!L86 -> 0 | M86: 0 | N86: 0 | P86: 0
B87: July | D87: ='6. Historical Wholesale'!D87 -> 0 | E87: 0 | F87: 0 | H87: ='6. Historical Wholesale'!H87 -> 0 | I87: 0 | J87: 0 | L87: ='6. Historical Wholesale'!L87 -> 0 | M87: 0 | N87: 0 | P87: 0
B88: August | D88: ='6. Historical Wholesale'!D88 -> 0 | E88: 0 | F88: 0 | H88: ='6. Historical Wholesale'!H88 -> 0 | I88: 0 | J88: 0 | L88: ='6. Historical Wholesale'!L88 -> 0 | M88: 0 | N88: 0 | P88: 0
B89: September | D89: ='6. Historical Wholesale'!D89 -> 0 | E89: 0 | F89: 0 | H89: ='6. Historical Wholesale'!H89 -> 0 | I89: 0 | J89: 0 | L89: ='6. Historical Wholesale'!L89 -> 0 | M89: 0 | N89: 0 | P89: 0
B90: October | D90: ='6. Historical Wholesale'!D90 -> 0 | E90: 0 | F90: 0 | H90: ='6. Historical Wholesale'!H90 -> 0 | I90: 0 | J90: 0 | L90: ='6. Historical Wholesale'!L90 -> 0 | M90: 0 | N90: 0 | P90: 0
B91: November | D91: ='6. Historical Wholesale'!D91 -> 0 | E91: 0 | F91: 0 | H91: ='6. Historical Wholesale'!H91 -> 0 | I91: 0 | J91: 0 | L91: ='6. Historical Wholesale'!L91 -> 0 | M91: 0 | N91: 0 | P91: 0
B92: December | D92: ='6. Historical Wholesale'!D92 -> 0 | E92: 0 | F92: 0 | H92: ='6. Historical Wholesale'!H92 -> 0 | I92: 0 | J92: 0 | L92: ='6. Historical Wholesale'!L92 -> 0 | M92: 0 | N92: 0 | P92: 0
B94: Total | D94: =SUM(D81:D92) -> 0 | E94: =IF(D94<>0,F94/D94,0) -> 0 | F94: =SUM(F81:F92) -> 0 | H94: =SUM(H81:H92) -> 0 | I94: =IF(H94<>0,J94/H94,0) -> 0 | J94: =SUM(J81:J92) -> 0 | L94: =SUM(L81:L92) -> 0 | M94: =IF(L94<>0,N94/L94,0) -> 0 | N94: =SUM(N81:N92) -> 0 | P94: =SUM(P81:P92) -> 0
B96: Total | D96: Network | H96: Line Connection | L96: Transformation Connection | P96: Total Line
B98: Month | D98: Units Billed | E98: Rate | F98: Amount | H98: Units Billed | I98: Rate | J98: Amount | L98: Units Billed | M98: Rate | N98: Amount | P98: Amount
B100: January | D100: =D24+D43+D62+D81 -> 15803 | E100: =IF(D100<>0,F100/D100,0) -> 3.34 | F100: =F24+F43+F62+F81 -> 52782.02 | H100: =H24+H43+H62+H81 -> 0 | I100: =IF(H100<>0,J100/H100,0) -> 0 | J100: =J24+J43+J62+J81 -> 0 | L100: =L24+L43+L62+L81 -> 15803 | M100: =IF(L100<>0,N100/L100,0) -> 1.77 | N100: =N24+N43+N62+N81 -> 27971.31 | P100: =J100+N100 -> 27971.31
B101: February | D101: =D25+D44+D63+D82 -> 15138 | E101: 3.34 | F101: 50560.92 | H101: =H25+H44+H63+H82 -> 0 | I101: 0 | J101: =J25+J44+J63+J82 -> 0 | L101: =L25+L44+L63+L82 -> 15138 | M101: 1.77 | N101: =N25+N44+N63+N82 -> 26794.26 | P101: 26794.26
B102: March | D102: 14473 | E102: 3.34 | F102: 48339.82 | H102: =H26+H45+H64+H83 -> 0 | I102: 0 | J102: =J26+J45+J64+J83 -> 0 | L102: =L26+L45+L64+L83 -> 14473 | M102: 1.77 | N102: =N26+N45+N64+N83 -> 25617.21 | P102: 25617.21
B103: April | D103: 9693 | E103: 3.34 | F103: 32374.62 | H103: =H27+H46+H65+H84 -> 0 | I103: 0 | J103: =J27+J46+J65+J84 -> 0 | L103: =L27+L46+L65+L84 -> 9693 | M103: 1.77 | N103: =N27+N46+N65+N84 -> 17156.61 | P103: 17156.61
B104: May | D104: 10805 | E104: 3.34 | F104: 36088.7 | H104: =H28+H47+H66+H85 -> 0 | I104: 0 | J104: =J28+J47+J66+J85 -> 0 | L104: =L28+L47+L66+L85 -> 10805 | M104: 1.77 | N104: =N28+N47+N66+N85 -> 19124.85 | P104: 19124.85
B105: June | D105: 14453 | E105: 3.34 | F105: 48273.02 | H105: =H29+H48+H67+H86 -> 0 | I105: 0 | J105: =J29+J48+J67+J86 -> 0 | L105: =L29+L48+L67+L86 -> 14453 | M105: 1.77 | N105: =N29+N48+N67+N86 -> 25581.81 | P105: 25581.81
B106: July | D106: 15675 | E106: 3.34 | F106: 52354.5 | H106: =H30+H49+H68+H87 -> 0 | I106: 0 | J106: =J30+J49+J68+J87 -> 0 | L106: =L30+L49+L68+L87 -> 15675 | M106: 1.77 | N106: =N30+N49+N68+N87 -> 27744.75 | P106: 27744.75
B107: August | D107: 16466 | E107: 3.34 | F107: 54996.44 | H107: =H31+H50+H69+H88 -> 0 | I107: 0 | J107: =J31+J50+J69+J88 -> 0 | L107: =L31+L50+L69+L88 -> 16466 | M107: 1.77 | N107: =N31+N50+N69+N88 -> 29144.82 | P107: 29144.82
B108: September | D108: 14855 | E108: 3.34 | F108: 49615.7 | H108: =H32+H51+H70+H89 -> 0 | I108: 0 | J108: =J32+J51+J70+J89 -> 0 | L108: =L32+L51+L70+L89 -> 14855 | M108: 1.77 | N108: =N32+N51+N70+N89 -> 26293.35 | P108: 26293.35
B109: October | D109: 12155 | E109: 3.34 | F109: 40597.7 | H109: =H33+H52+H71+H90 -> 0 | I109: 0 | J109: =J33+J52+J71+J90 -> 0 | L109: =L33+L52+L71+L90 -> 12155 | M109: 1.77 | N109: =N33+N52+N71+N90 -> 21514.35 | P109: 21514.35
B110: November | D110: 12438 | E110: 3.34 | F110: 41542.92 | H110: =H34+H53+H72+H91 -> 0 | I110: 0 | J110: =J34+J53+J72+J91 -> 0 | L110: =L34+L53+L72+L91 -> 12438 | M110: 1.77 | N110: =N34+N53+N72+N91 -> 22015.26 | P110: 22015.26
B111: December | D111: 12537 | E111: 3.34 | F111: 41873.58 | H111: =H35+H54+H73+H92 -> 0 | I111: 0 | J111: =J35+J54+J73+J92 -> 0 | L111: =L35+L54+L73+L92 -> 12537 | M111: 1.77 | N111: =N35+N54+N73+N92 -> 22190.49 | P111: 22190.49
B113: Total | D113: =SUM(D100:D111) -> 164491 | E113: =IF(D113<>0,F113/D113,0) -> 3.34 | F113: =SUM(F100:F111) -> 549399.94 | H113: =SUM(H100:H111) -> 0 | I113: =IF(H113<>0,J113/H113,0) -> 0 | J113: =SUM(J100:J111) -> 0 | L113: =SUM(L100:L111) -> 164491 | M113: =IF(L113<>0,N113/L113,0) -> 1.77 | N113: =SUM(N100:N111) -> 291149.07 | P113: =SUM(P100:P111) -> 291149.07
N115: Low Voltage Switchgear Credit (if applicable) | P115: ='5. UTRs and Sub-Transmission'!I95 -> 0
N117: Total including deduction for Low Voltage Switchgear Credit | P117: =P113+P115 -> 291149.07

Sheet 9. RTSR Rates to Forecast
A13: The purpose of this sheet is to re-align the current RTS Network Rates to recover current wholesale network costs.
A15: Rate Class | B15: Rate Description | C15: Unit | D15: Current RTSR-Network | E15: Loss Adjusted Billed kWh | F15: Billed kW | G15: Billed Amount | H15: Billed Amount % | I15: Current Wholesale Billing | J15: Adjusted RTSR Network
A17: Residential | B17: RTSR - Network | C17: kWh | D17: 0.0064 | E17: 31985883.04 | G17: =ROUND(D17*E17, 2) -> 204709.65 | H17: =G17/548948.95 -> 0.3729119985 | I17: =H17*total_current_wholesale_network -> 198130.3562 | J17: =IF(ISERROR(I17/E17), 0, I17/E17) -> 0.006194306279
A18: General Service Less Than 50 kW | B18: RTSR - Network | C18: kWh | D18: 0.0058 | E18: 11721620.27 | G18: =ROUND(D18*E18, 2) -> 67985.4 | H18: =G18/548948.95 -> 0.1238464888 | I18: =H18*total_current_wholesale_network -> 65800.37392 | J18: =IF(ISERROR(I18/E18), 0, I18/E18) -> 0.005613590305
A19: General Service 50 to 4,999 kW | B19: RTSR - Network | C19: kW | D19: 2.3668 | F19: 113922 | G19: =ROUND(D19*F19, 2) -> 269630.59 | H19: =G19/548948.95 -> 0.4911760738 | I19: =H19*total_current_wholesale_network -> 260964.7607 | J19: =IF(ISERROR(I19/F19), 0, I19/F19) -> 2.29073191
A20: Unmetered Scattered Load | B20: RTSR - Network | C20: kWh | D20: 0.0058 | E20: 167948.484 | G20: =ROUND(D20*E20, 2) -> 974.1 | H20: =G20/548948.95 -> 0.001774481944 | I20: =H20*total_current_wholesale_network -> 942.7927796 | J20: =IF(ISERROR(I20/E20), 0, I20/E20) -> 0.005613583148
A21: Street Lighting | B21: RTSR - Network | C21: kW | D21: 1.7849 | F21: 3165 | G21: =ROUND(D21*F21, 2) -> 5649.21 | H21: =G21/548948.95 -> 0.01029095693 | I21: =H21*total_current_wholesale_network -> 5467.646441 | J21: =IF(ISERROR(I21/F21), 0, I21/F21) -> 1.727534421
A23: The purpose of this table is to re-align the current RTS Connection Rates to recover current wholesale connection costs.
A24: Rate Class | B24: Rate Description | C24: Unit | D24: Current RTSR-Connection | E24: Loss Adjusted Billed kWh | F24: Billed kW | G24: Billed Amount | H24: Billed Amount % | I24: Current Wholesale Billing | J24: Adjusted RTSR-Connection
A26: Residential | B26: RTSR - Connection | C26: kWh | D26: 0.0033 | E26: 31985883.04 | G26: =ROUND(D26*E26, 2) -> 105553.41 | H26: =G26/277003.09 -> 0.3810549911 | I26: =H26*Total_Current_Wholesale_Lineplus -> 101541.7888 | J26: =IF(ISERROR(I26/E26), 0, I26/E26) -> 0.003174581382
A27: General Service Less Than 50 kW | B27: RTSR - Connection | C27: kWh | D27: 0.0031 | E27: 11721620.27 | G27: =ROUND(D27*E27, 2) -> 36337.02 | H27: =G27/277003.09 -> 0.1311791143 | I27: =H27*Total_Current_Wholesale_Lineplus -> 34956.00957 | J27: =IF(ISERROR(I27/E27), 0, I27/E27) -> 0.002982182391
A28: General Service 50 to 4,999 kW | B28: RTSR - Connection | C28: kW | D28: 1.1566 | F28: 113922 | G28: =ROUND(D28*F28, 2) -> 131762.19 | H28: =G28/277003.09 -> 0.47567047 | I28: =H28*Total_Current_Wholesale_Lineplus -> 126754.4883 | J28: =IF(ISERROR(I28/F28), 0, I28/F28) -> 1.112642758
A29: Unmetered Scattered Load | B29: RTSR - Connection | C29: kWh | D29: 0.0031 | E29: 167948.484 | G29: =ROUND(D29*E29, 2) -> 520.64 | H29: =G29/277003.09 -> 0.00187954582 | I29: =H29*Total_Current_Wholesale_Lineplus -> 500.8527619 | J29: =IF(ISERROR(I29/E29), 0, I29/E29) -> 0.002982180904
A30: Street Lighting | B30: RTSR - Connection | C30: kW | D30: 0.8941 | F30: 3165 | G30: =ROUND(D30*F30, 2) -> 2829.83 | H30: =G30/277003.09 -> 0.01021587882 | I30: =H30*Total_Current_Wholesale_Lineplus -> 2722.280599 | J30: =IF(ISERROR(I30/F30), 0, I30/F30) -> 0.8601202525
A32: The purpose of this table is to update the re-aligned RTS Network Rates to recover future wholesale network costs.
A33: Rate Class | B33: Rate Description | C33: Unit | D33: Adjusted RTSR-Network | E33: Loss Adjusted Billed kWh | F33: Billed kW | G33: Billed Amount | H33: Billed Amount % | I33: Current Wholesale Billing | J33: Proposed RTSR-Network
A35: Residential | B35: RTSR - Network | C35: kWh | D35: 0.006194306279 | E35: 31985883.04 | G35: =IF(ISERROR(D35*E35), 0, ROUND(D35*E35, 2)) -> 198130.36 | H35: =G35/531305.93 -> 0.3729120057 | I35: =H35*forecast_wholesale_network -> 204877.8336 | J35: =IF(ISERROR(I35/E35), 0, I35/E35) -> 0.00640525801
A36: General Service Less Than 50 kW | B36: RTSR - Network | C36: kWh | D36: 0.005613590305 | E36: 11721620.27 | G36: =IF(ISERROR(D36*E36), 0, ROUND(D36*E36, 2)) -> 65800.37 | H36: =G36/531305.93 -> 0.1238464814 | I36: =H36*forecast_wholesale_network -> 68041.24947 | J36: =IF(ISERROR(I36/E36), 0, I36/E36) -> 0.005804764861
A37: General Service 50 to 4,999 kW | B37: RTSR - Network | C37: kW | D37: 2.29073191 | F37: 113922 | G37: =ROUND(D37*F37, 2) -> 260964.76 | H37: =G37/531305.93 -> 0.4911760725 | I37: =H37*forecast_wholesale_network -> 269852.1048 | J37: =IF(ISERROR(I37/F37), 0, I37/F37) -> 2.368744446
A38: Unmetered Scattered Load | B38: RTSR - Network | C38: kWh | D38: 0.005613583148 | E38: 167948.484 | G38: =IF(ISERROR(D38*E38), 0, ROUND(D38*E38, 2)) -> 942.79 | H38: =G38/531305.93 -> 0.001774476713 | I38: =H38*forecast_wholesale_network -> 974.8973994 | J38: =IF(ISERROR(I38/E38), 0, I38/E38) -> 0.005804740693
A39: Street Lighting | B39: RTSR - Network | C39: kW | D39: 1.727534421 | F39: 3165 | G39: =ROUND(D39*F39, 2) -> 5467.65 | H39: =G39/531305.93 -> 0.01029096363 | I39: =H39*forecast_wholesale_network -> 5653.854799 | J39: =IF(ISERROR(I39/F39), 0, I39/F39) -> 1.786368025
A41: The purpose of this table is to update the re-aligned RTS Connection Rates to recover future wholesale connection costs.
A42: Rate Class | B42: Rate Description | C42: Unit | D42: Adjusted RTSR-Connection | E42: Loss Adjusted Billed kWh | F42: Billed kW | G42: Billed Amount | H42: Billed Amount % | I42: Current Wholesale Billing | J42: Proposed RTSR-Connection
A44: Residential | B44: RTSR - Connection | C44: kWh | D44: 0.003174581382 | E44: 31985883.04 | G44: =ROUND(D44*E44, 2) -> 101541.79 | H44: =G44/266475.42 -> 0.3810549956 | I44: =H44*forecast_wholesale_lineplus -> 110943.8076 | J44: =IF(ISERROR(I44/E44), 0, I44/E44) -> 0.003468524144
A45: General Service Less Than 50 kW | B45: RTSR - Connection | C45: kWh | D45: 0.002982182391 | E45: 11721620.27 | G45: =ROUND(D45*E45, 2) -> 34956.01 | H45: =G45/266475.42 -> 0.1311791159 | I45: =H45*forecast_wholesale_lineplus -> 38192.67759 | J45: =IF(ISERROR(I45/E45), 0, I45/E45) -> 0.00325831043
A46: General Service 50 to 4,999 kW | B46: RTSR - Connection | C46: kW | D46: 1.112642758 | F46: 113922 | G46: =ROUND(D46*F46, 2) -> 126754.49 | H46: =G46/266475.42 -> 0.4756704765 | I46: =H46*forecast_wholesale_lineplus -> 138491.0169 | J46: =IF(ISERROR(I46/F46), 0, I46/F46) -> 1.215665252
A47: Unmetered Scattered Load | B47: RTSR - Connection | C47: kWh | D47: 0.002982180904 | E47: 167948.484 | G47: =ROUND(D47*E47, 2) -> 500.85 | H47: =G47/266475.42 -> 0.001879535456 | I47: =H47*forecast_wholesale_lineplus -> 547.225 | J47: =IF(ISERROR(I47/E47), 0, I47/E47) -> 0.003258290798
A48: Street Lighting | B48: RTSR - Connection | C48: kW | D48: 0.8601202525 | F48: 3165 | G48: =ROUND(D48*F48, 2) -> 2722.28 | H48: =G48/266475.42 -> 0.01021587657 | I48: =H48*forecast_wholesale_lineplus -> 2974.342963 | J48: =IF(ISERROR(I48/F48), 0, I48/F48) -> 0.9397608098

Sheet hidden1 (hidden)
A1: =IF('3. Rate Classes'!L17=1, '3. Rate Classes'!C17, "") -> Residential | B1: 1
A2: =IF('3. Rate Classes'!L18=1, '3. Rate Classes'!C18, "") -> General Service Less Than 50 kW | B2: 2
A3: =IF('3. Rate Classes'!L19=1, '3. Rate Classes'!C19, "") -> General Service 50 to 4,999 kW | B3: 3
A4: =IF('3. Rate Classes'!L20=1, '3. Rate Classes'!C20, "") -> Unmetered Scattered Load | B4: 4
A5: =IF('3. Rate Classes'!L21=1, '3. Rate Classes'!C21, "") -> Street Lighting | B5: 5
A6: =IF('3. Rate Classes'!L22=1, '3. Rate Classes'!C22, "") ->  | B6: 6
A7: =IF('3. Rate Classes'!L23=1, '3. Rate Classes'!C23, "") ->  | B7: 7
A8: =IF('3. Rate Classes'!L24=1, '3. Rate Classes'!C24, "") ->  | B8: 8
A9: =IF('3. Rate Classes'!L25=1, '3. Rate Classes'!C25, "") ->  | B9: 9
A10: =IF('3. Rate Classes'!L26=1, '3. Rate Classes'!C26, "") ->  | B10: 10
A11: =IF('3. Rate Classes'!L27=1, '3. Rate Classes'!C27, "") ->  | B11: 11
A12: =IF('3. Rate Classes'!L28=1, '3. Rate Classes'!C28, "") ->  | B12: 12
A13: =IF('3. Rate Classes'!L29=1, '3. Rate Classes'!C29, "") ->  | B13: 13
A14: =IF('3. Rate Classes'!L30=1, '3. Rate Classes'!C30, "") ->  | B14: 14
A15: =IF('3. Rate Classes'!L31=1, '3. Rate Classes'!C31, "") ->  | B15: 15
A16: =IF('3. Rate Classes'!L32=1, '3. Rate Classes'!C32, "") ->  | B16: 16
A17: =IF('3. Rate Classes'!L33=1, '3. Rate Classes'!C33, "") ->  | B17: 17
A18: =IF('3. Rate Classes'!L34=1, '3. Rate Classes'!C34, "") ->  | B18: 18
A19: =IF('3. Rate Classes'!L35=1, '3. Rate Classes'!C35, "") ->  | B19: 19
A20: =IF('3. Rate Classes'!L36=1, '3. Rate Classes'!C36, "") ->  | B20: 20
A21: =IF('3. Rate Classes'!L37=1, '3. Rate Classes'!C37, "") ->  | B21: 21
A22: =IF('3. Rate Classes'!L38=1, '3. Rate Classes'!C38, "") ->  | B22: 22
